{"text_format":"1","workbook":"xlsx","n_sheets":10,"sheets":["FieldMapping","PriorityAxisReference","InvestmentPriorityReference","CostCategoryReference","Reference","Guidance","Transactions","Summary","Cleansed","ExportReady"],"not_rendered":{"charts":0,"images":1,"macros":1,"external_links":0,"defined_names":27,"comments":0,"pivot_tables":1},"unopened":[],"bounds":{"document_bytes":16777216,"sheet_cells":100000,"rows_first":2000,"rows_last":500,"rows_between":2000,"halvings":0,"cell_chars":16384,"cell_head_chars":4096},"cells_cut":0,"cells_raw":0,"read":"whole","date_system":"1900"}

{"sheet":"FieldMapping","index":0,"n_rows":23,"n_cols":2,"rows_kept":23,"cut":false,"hidden":true,"merged":[]}
["Template Field Name","Upload Field Name"]
["Line Item ID","line-number"]
["Cost Category","cost-category"]
["Delivery Partner","delivery-partner"]
["Priority Axis","priority-axis"]
["Investment Priority","investment-priority"]
["Procured Contract ID","procured-contract-id"]
["Supplier Name","supplier-name"]
["Supplier VAT Number","supplier-vat"]
["Invoice Reference","invoice-id"]
["Invoice Date","invoice-date"]
["Payment Date","payment-date"]
["Payment Method","payment-method"]
["Payment Reference","payment-reference"]
["Expenditure Description","expenditure-desc"]
["Apportionment Details","apportionment-details"]
["Total Invoice Value","total-invoice-value"]
["Total Irrecoverable VAT","total-irrecoverable-vat"]
["Total Eligible Value","total-eligible-value"]
["Eligible for Flat Rate Indirect Costs","eligible-flat-rate-indirect-costs"]
["Total Less Developed Category of Region","total-less-developed-category-of-region"]
["Total Transition Category of Region","total-transition-category-of-region"]
["Total More Developed Category of Region","total-more-developed-category-of-region"]

{"sheet":"PriorityAxisReference","index":1,"n_rows":18,"n_cols":3,"rows_kept":18,"cut":false,"hidden":true,"merged":[]}
["ERDF_PriorityAxis"]
["Priority Axis Reference","Priority Axis Name","Priority Axis Short Name"]
["PA1","Promoting Research and Innovation","Research and Innovation"]
["PA2","Enhancing Access To and Use And Quality of ICT","Access, Use and Quality of ICT"]
["PA3","Enhancing the Competitiveness of SMEs","Competitiveness of SMEs"]
["PA4","Supporting the Shift Towards a Low Carbon Economy In All Sectors","Low Carbon Economy"]
["PA5","Promoting Climate Change Adaptation, Risk Prevention and Management","Climate Change Adaptation"]
["PA6","Preserving and Protecting The Environment And Promoting Resource Efficiency","Environment and Resource Efficiency"]
["PA7","Sustainable Transport in Cornwall and The Isles of Scilly","Sustainable Transport"]
["PA8","Promoting Social Inclusion and Combatting Poverty and Any Discrimination","Social Inclusion"]
["PA9","Technical Assistance","Technical Assistance"]
[]
["ESF_PriorityAxis"]
["Priority Axis Reference","Priority Axis Name","Priority Axis Short Name"]
["P1","Inclusive Labour Markets","Inclusive Labour Markets"]
["P2","Skills for Growth","Skills for Growth"]
["P3","Technical Assistance","Technical Assistance"]
["P4","COVID-19 Response"]

{"sheet":"InvestmentPriorityReference","index":2,"n_rows":71,"n_cols":4,"rows_kept":71,"cut":false,"hidden":true,"merged":[]}
["ERDF"]
[]
["ERDF_PA1_InvestmentPriority"]
["Reference","Full Name","Short Name","Ref Name"]
["1a","Enhancing research and innovation (R&I) infrastructure and capacities to develop R&I excellence, and promoting centres of competence, in particular those of European interest","Enhancing Research and Innovation Infrastructure",{"$f":"ERDF_PA1_InvestmentPriority[[#This Row],[Reference]] & \" - \" & ERDF_PA1_InvestmentPriority[[#This Row],[Short Name]]","v":"1a - Enhancing Research and Innovation Infrastructure"}]
["1b","Promoting business investment in R&I;\n- developing links and synergies between enterprises, research and development centres and the Higher Education sector, in particular promoting investment in product and service development, technology transfer, social innovation, eco-innovation, public service applications, demand stimulation, networking, clusters and open innovation through smart specialisation;\n-and supporting technological and applied research, pilot lines, early product validation actions, advance manufacturing capabilities and first production, in particular in key enabling technologies and diffusion of general purpose technologies.","Promoting Business Investment in Research and Innovation",{"$f":"ERDF_PA1_InvestmentPriority[[#This Row],[Reference]] & \" - \" & ERDF_PA1_InvestmentPriority[[#This Row],[Short Name]]","v":"1b - Promoting Business Investment in Research and Innovation"}]
[]
["ERDF_PA2_InvestmentPriority"]
["Reference","Full Name","Short Name","Ref Name"]
["2a","Extending broadband deployment and the roll-out of high-speed networks and supporting the adoption of emerging technologies and networks for the digital economy","Extending Broadband Deployment",{"$f":"ERDF_PA2_InvestmentPriority[[#This Row],[Reference]] & \" - \" & ERDF_PA2_InvestmentPriority[[#This Row],[Short Name]]","v":"2a - Extending Broadband Deployment"}]
["2b","Developing ICT products and services, e-commerce, and enhancing demand for ICT","Developing ICT products and services, e commerce, and enhancing demand for ICT",{"$f":"ERDF_PA2_InvestmentPriority[[#This Row],[Reference]] & \" - \" & ERDF_PA2_InvestmentPriority[[#This Row],[Short Name]]","v":"2b - Developing ICT products and services, e commerce, and enhancing demand for ICT"}]
[]
["ERDF_PA3_InvestmentPriority"]
["Reference","Full Name","Short Name","Ref Name"]
["3a","Promoting entrepreneurship, in particular by facilitating the economic exploitation of new ideas and fostering the creation of new firms, including through business incubators.","Promoting entrepreneurship",{"$f":"ERDF_PA3_InvestmentPriority[[#This Row],[Reference]] & \" - \" & ERDF_PA3_InvestmentPriority[[#This Row],[Short Name]]","v":"3a - Promoting entrepreneurship"}]
["3c","Supporting the creation and the extension of advanced capacities for products, services and development","Supporting the creation and the extension of advanced capacities for products, services and development",{"$f":"ERDF_PA3_InvestmentPriority[[#This Row],[Reference]] & \" - \" & ERDF_PA3_InvestmentPriority[[#This Row],[Short Name]]","v":"3c - Supporting the creation and the extension of advanced capacities for products, services and development"}]
["3d","Supporting the capacity of small and medium sized enterprises to grow in regional, national and international markets and to engage in innovation processes","Supporting the capacity of SMEs",{"$f":"ERDF_PA3_InvestmentPriority[[#This Row],[Reference]] & \" - \" & ERDF_PA3_InvestmentPriority[[#This Row],[Short Name]]","v":"3d - Supporting the capacity of SMEs"}]
[]
["ERDF_PA4_InvestmentPriority"]
["Reference","Full Name","Short Name","Ref Name"]
["4a","Promoting the production and distribution of energy derived from renewable sources","Promoting the production and distribution of energy derived from renewable sources",{"$f":"ERDF_PA4_InvestmentPriority[[#This Row],[Reference]] & \" - \" & ERDF_PA4_InvestmentPriority[[#This Row],[Short Name]]","v":"4a - Promoting the production and distribution of energy derived from renewable sources"}]
["4b","Promoting energy efficiency and renewable energy use in enterprises","Promoting energy efficiency and renewable energy use in enterprises",{"$f":"ERDF_PA4_InvestmentPriority[[#This Row],[Reference]] & \" - \" & ERDF_PA4_InvestmentPriority[[#This Row],[Short Name]]","v":"4b - Promoting energy efficiency and renewable energy use in enterprises"}]
["4c","Supporting energy efficiency, smart energy management and renewable energy use in public infrastructure, including in public buildings, and in the housing sector","Supporting energy efficiency, smart energy management and renewable energy use in public infrastructure, including in public buildings, and in the housing sector",{"$f":"ERDF_PA4_InvestmentPriority[[#This Row],[Reference]] & \" - \" & ERDF_PA4_InvestmentPriority[[#This Row],[Short Name]]","v":"4c - Supporting energy efficiency, smart energy management and renewable energy use in public infrastructure, including in public buildings, and in the housing sector"}]
["4e","Promoting low-carbon strategies for all types of territories, in particular for urban areas, including the promotion of sustainable multimodal urban mobility and mitigation-relevant adaptation measures","Promoting low carbon strategies",{"$f":"ERDF_PA4_InvestmentPriority[[#This Row],[Reference]] & \" - \" & ERDF_PA4_InvestmentPriority[[#This Row],[Short Name]]","v":"4e - Promoting low carbon strategies"}]
["4f","Promoting research and innovation in, and adoption of, low-carbon technologies","Promoting R&I in low carbon technologies",{"$f":"ERDF_PA4_InvestmentPriority[[#This Row],[Reference]] & \" - \" & ERDF_PA4_InvestmentPriority[[#This Row],[Short Name]]","v":"4f - Promoting R&I in low carbon technologies"}]
[]
["ERDF_PA5_InvestmentPriority"]
["Reference","Full Name","Short Name","Ref Name"]
["5b","Promoting investment to address specific risks, ensuring disaster resilience and developing disaster management systems","Promoting investment to address specific risks, ensuring disaster resilience and developing disaster management systems",{"$f":"ERDF_PA5_InvestmentPriority[[#This Row],[Reference]] & \" - \" & ERDF_PA5_InvestmentPriority[[#This Row],[Short Name]]","v":"5b - Promoting investment to address specific risks, ensuring disaster resilience and developing disaster management systems"}]
[]
["ERDF_PA6_InvestmentPriority"]
["Reference","Full Name","Short Name","Ref Name"]
["6d","Protecting and restoring biodiversity and soil and promoting ecosystem services, including through Natura 2000, and green infrastructure","Protecting and restoring biodiversity",{"$f":"ERDF_PA6_InvestmentPriority[[#This Row],[Reference]] & \" - \" & ERDF_PA6_InvestmentPriority[[#This Row],[Short Name]]","v":"6d - Protecting and restoring biodiversity"}]
["6f","Promoting innovative technologies to improve environmental protection and resource efficiency in the waste sector, water sector and with regard to soil, or to reduce air pollution","Promoting innovative technologies to improve environmental protection",{"$f":"ERDF_PA6_InvestmentPriority[[#This Row],[Reference]] & \" - \" & ERDF_PA6_InvestmentPriority[[#This Row],[Short Name]]","v":"6f - Promoting innovative technologies to improve environmental protection"}]
[]
["ERDF_PA7_InvestmentPriority"]
["Reference","Full Name","Short Name","Ref Name"]
["7a","Supporting a multimodal Single European Transport Area by investing in the TEN-T","Supporting a multimodal Single European Transport Area by investing in the TEN(T)",{"$f":"ERDF_PA7_InvestmentPriority[[#This Row],[Reference]] & \" - \" & ERDF_PA7_InvestmentPriority[[#This Row],[Short Name]]","v":"7a - Supporting a multimodal Single European Transport Area by investing in the TEN(T)"}]
["7c","Developing and improving environmentally-friendly (including low-noise) and low-carbon transport systems, including inland waterways and maritime transport, ports, multimodal links and airport infrastructure, in order to promote sustainable regional and local mobility","Developing and improving environmentally friendly (including low noise) and low carbon transport systems",{"$f":"ERDF_PA7_InvestmentPriority[[#This Row],[Reference]] & \" - \" & ERDF_PA7_InvestmentPriority[[#This Row],[Short Name]]","v":"7c - Developing and improving environmentally friendly (including low noise) and low carbon transport systems"}]
[]
["ERDF_PA8_InvestmentPriority"]
["Reference","Full Name","Short Name","Ref Name"]
["9d","Undertaking investment in the context of community led local development strategies","Investment in CLLD strategies",{"$f":"ERDF_PA8_InvestmentPriority[[#This Row],[Reference]] & \" - \" & ERDF_PA8_InvestmentPriority[[#This Row],[Short Name]]","v":"9d - Investment in CLLD strategies"}]
[]
["ERDF_PA9_InvestmentPriority"]
["Reference","Full Name","Short Name","Ref Name"]
["9a","Technical Assistance","Technical Assistance",{"$f":"ERDF_PA9_InvestmentPriority[[#This Row],[Reference]] & \" - \" & ERDF_PA9_InvestmentPriority[[#This Row],[Short Name]]","v":"9a - Technical Assistance"}]
[]
["ESF"]
[]
["ESF_P1_InvestmentPriority"]
["Reference","Full Name","Short Name","Ref Name"]
[1.1000000000000001,"Access to Employment for Job-Seekers and Inactive People","Access to Employment",{"$f":"ESF_P1_InvestmentPriority[[#This Row],[Reference]] & \" - \" & ESF_P1_InvestmentPriority[[#This Row],[Short Name]]","v":"1.1 - Access to Employment"}]
[1.2,"Sustainable Integration of Young People","Sustainable Integration of Young People",{"$f":"ESF_P1_InvestmentPriority[[#This Row],[Reference]] & \" - \" & ESF_P1_InvestmentPriority[[#This Row],[Short Name]]","v":"1.2 - Sustainable Integration of Young People"}]
["1.3a","Youth Employment Initiative","Youth Employment Initiative (YEI only)",{"$f":"ESF_P1_InvestmentPriority[[#This Row],[Reference]] & \" - \" & ESF_P1_InvestmentPriority[[#This Row],[Short Name]]","v":"1.3a - Youth Employment Initiative (YEI only)"}]
["1.3b","Youth Employment Initiative","Youth Employment Initiative (ESF and Match)",{"$f":"ESF_P1_InvestmentPriority[[#This Row],[Reference]] & \" - \" & ESF_P1_InvestmentPriority[[#This Row],[Short Name]]","v":"1.3b - Youth Employment Initiative (ESF and Match)"}]
[1.4,"Active Inclusion","Active Inclusion",{"$f":"ESF_P1_InvestmentPriority[[#This Row],[Reference]] & \" - \" & ESF_P1_InvestmentPriority[[#This Row],[Short Name]]","v":"1.4 - Active Inclusion"}]
[1.5,"Community Led Local Development","CLLD",{"$f":"ESF_P1_InvestmentPriority[[#This Row],[Reference]] & \" - \" & ESF_P1_InvestmentPriority[[#This Row],[Short Name]]","v":"1.5 - CLLD"}]
[]
["ESF_P2_InvestmentPriority"]
["Reference","Full Name","Short Name","Ref Name"]
[2.1,"Enhancing Equal Access to Lifelong Learning","Lifelong Learning",{"$f":"ESF_P2_InvestmentPriority[[#This Row],[Reference]] & \" - \" & ESF_P2_InvestmentPriority[[#This Row],[Short Name]]","v":"2.1 - Lifelong Learning"}]
[2.2000000000000002,"Improving the Labour Market Relevance of Education and Training Systems","Labour Market relevance",{"$f":"ESF_P2_InvestmentPriority[[#This Row],[Reference]] & \" - \" & ESF_P2_InvestmentPriority[[#This Row],[Short Name]]","v":"2.2 - Labour Market relevance"}]
[]
["ESF_P3_InvestmentPriority"]
["Reference","Full Name","Short Name","Ref Name"]
[3.1,"Technical Assistance","Technical Assistance",{"$f":"ESF_P3_InvestmentPriority[[#This Row],[Reference]] & \" - \" & ESF_P3_InvestmentPriority[[#This Row],[Short Name]]","v":"3.1 - Technical Assistance"}]
[]
["ESF_P4_InvestmentPriority"]
["Reference","Full Name","Short Name","Ref Name"]
["4.1","Response to Coronavirus","Response to Coronavirus2","4.1 - Response to Coronavirus"]

{"sheet":"CostCategoryReference","index":3,"n_rows":36,"n_cols":3,"rows_kept":36,"cut":false,"hidden":true,"merged":[]}
["ERDF_CC"]
["Type Category","Type","Category"]
[{"$f":"\"(\" & LEFT(ERDF_CC[Type],3) & \") \" & ERDF_CC[Category]","v":"(Cap) Building Acquisition"},"Capital","Building Acquisition"]
[{"$f":"\"(\" & LEFT(ERDF_CC[Type],3) & \") \" & ERDF_CC[Category]","v":"(Cap) Building and Construction"},"Capital","Building and Construction"]
[{"$f":"\"(\" & LEFT(ERDF_CC[Type],3) & \") \" & ERDF_CC[Category]","v":"(Cap) Equipment"},"Capital","Equipment"]
[{"$f":"\"(\" & LEFT(ERDF_CC[Type],3) & \") \" & ERDF_CC[Category]","v":"(Cap) Fees"},"Capital","Fees"]
[{"$f":"\"(\" & LEFT(ERDF_CC[Type],3) & \") \" & ERDF_CC[Category]","v":"(Cap) Land Acquisition"},"Capital","Land Acquisition"]
[{"$f":"\"(\" & LEFT(ERDF_CC[Type],3) & \") \" & ERDF_CC[Category]","v":"(Cap) Other Capital"},"Capital","Other Capital"]
[{"$f":"\"(\" & LEFT(ERDF_CC[Type],3) & \") \" & ERDF_CC[Category]","v":"(Cap) Plant and Machinery"},"Capital","Plant and Machinery"]
[{"$f":"\"(\" & LEFT(ERDF_CC[Type],3) & \") \" & ERDF_CC[Category]","v":"(Cap) Premises"},"Capital","Premises"]
[{"$f":"\"(\" & LEFT(ERDF_CC[Type],3) & \") \" & ERDF_CC[Category]","v":"(Cap) Project Income"},"Capital","Project Income"]
[{"$f":"\"(\" & LEFT(ERDF_CC[Type],3) & \") \" & ERDF_CC[Category]","v":"(Cap) Financial Instrument Investment Capital"},"Capital","Financial Instrument Investment Capital"]
[{"$f":"\"(\" & LEFT(ERDF_CC[Type],3) & \") \" & ERDF_CC[Category]","v":"(Cap) Financial Instrument Management Costs"},"Capital","Financial Instrument Management Costs"]
[{"$f":"\"(\" & LEFT(ERDF_CC[Type],3) & \") \" & ERDF_CC[Category]","v":"(Cap) Financial Instrument Fees"},"Capital","Financial Instrument Fees"]
[{"$f":"\"(\" & LEFT(ERDF_CC[Type],3) & \") \" & ERDF_CC[Category]","v":"(Rev) Consultancy"},"Revenue","Consultancy"]
[{"$f":"\"(\" & LEFT(ERDF_CC[Type],3) & \") \" & ERDF_CC[Category]","v":"(Rev) Marketing"},"Revenue","Marketing"]
[{"$f":"\"(\" & LEFT(ERDF_CC[Type],3) & \") \" & ERDF_CC[Category]","v":"(Rev) Office Costs"},"Revenue","Office Costs"]
[{"$f":"\"(\" & LEFT(ERDF_CC[Type],3) & \") \" & ERDF_CC[Category]","v":"(Rev) Other Revenue"},"Revenue","Other Revenue"]
[{"$f":"\"(\" & LEFT(ERDF_CC[Type],3) & \") \" & ERDF_CC[Category]","v":"(Rev) Professional Fees"},"Revenue","Professional Fees"]
[{"$f":"\"(\" & LEFT(ERDF_CC[Type],3) & \") \" & ERDF_CC[Category]","v":"(Rev) Project Income"},"Revenue","Project Income"]
[{"$f":"\"(\" & LEFT(ERDF_CC[Type],3) & \") \" & ERDF_CC[Category]","v":"(Rev) Rent"},"Revenue","Rent"]
[{"$f":"\"(\" & LEFT(ERDF_CC[Type],3) & \") \" & ERDF_CC[Category]","v":"(Rev) Salaries"},"Revenue","Salaries"]
[]
["ESF_CC"]
["Type Category","Type","Category"]
[{"$f":"ESF_CC[Type] & \" - \" & ESF_CC[Category]","v":"ESF - CFO Admin"},"ESF","CFO Admin"]
[{"$f":"ESF_CC[Type] & \" - \" & ESF_CC[Category]","v":"ESF - direct staff costs"},"ESF","direct staff costs"]
[{"$f":"ESF_CC[Type] & \" - \" & ESF_CC[Category]","v":"ESF - contract costs"},"ESF","contract costs"]
[{"$f":"ESF_CC[Type] & \" - \" & ESF_CC[Category]","v":"ESF - other direct costs"},"ESF","other direct costs"]
[{"$f":"ESF_CC[Type] & \" - \" & ESF_CC[Category]","v":"Match - direct staff costs"},"Match","direct staff costs"]
[{"$f":"ESF_CC[Type] & \" - \" & ESF_CC[Category]","v":"Match - contract costs"},"Match","contract costs"]
[{"$f":"ESF_CC[Type] & \" - \" & ESF_CC[Category]","v":"Match - other direct costs"},"Match","other direct costs"]
[{"$f":"ESF_CC[Type] & \" - \" & ESF_CC[Category]","v":"YEI - other direct costs"},"YEI","other direct costs"]
[{"$f":"ESF_CC[Type] & \" - \" & ESF_CC[Category]","v":"YEI - contract costs"},"YEI","contract costs"]
[{"$f":"ESF_CC[Type] & \" - \" & ESF_CC[Category]","v":"YEI - direct staff costs"},"YEI","direct staff costs"]
["TA Flat Rate Costs","ESF","TA Flat Rate Costs"]

{"sheet":"Reference","index":4,"n_rows":10,"n_cols":6,"rows_kept":10,"cut":false,"hidden":true,"merged":[]}
["Fund",null,"PaymentMethod",null,"Key Values"]
["ERDF",null,"BACS",null,"Range Name","Value"]
["ESF",null,"Cheque",null,"MinTransactionValue",-999999999.99000001]
[null,null,"Bank Transfer",null,"MaxTransactionValue",999999999.99000001]
[null,null,"CHAPS",null,"IncludesMoreDev",true]
[null,null,"Direct Debit",null,"IncludesTransition",true]
[null,null,"Credit Card",null,"IncludesLessDev",true]
[null,null,"Debit Card",null,"SingleCoR",{"$f":"COUNTIF(F5:F7,TRUE)=1","v":false}]
[null,null,"Cash",null,"AllowMultiPA",true]
[null,null,"Other",null,"FricRate",0]

{"sheet":"Guidance","index":5,"n_rows":1,"n_cols":9,"rows_kept":1,"cut":false,"hidden":false,"merged":[]}
["Guidance for setting up Transaction sheet and entering data.",null,null,null,null,null,null,null,"v6"]

{"sheet":"Transactions","index":6,"n_rows":2,"n_cols":41,"rows_kept":2,"cut":false,"hidden":false,"merged":[]}
["Line Item ID","Cost Category","Delivery Partner","Priority Axis","Investment Priority","Procured Contract ID","Supplier Name","Supplier VAT Number","Invoice Reference","Invoice Date","Defrayal Date","Defrayal Method","Defrayal Reference","Expenditure Description","Apportionment Details","Total Invoice Value","Total Irrecoverable VAT","Total Eligible Value","Eligible for Flat Rate Indirect Costs","Total Less Developed Category of Region","Total Transition Category of Region","Total More Developed Category of Region","Check CoR Total Matches Total Eligible","Check FRIC","FRIC Rate","Check Single CoR","Check LD","Check Transition","Check MD","Total Less Developed FRIC","Total Transition FRIC","Total More Developed FRIC","Total FRIC","Total Eligible Including FRIC","Flag Long Decimals Total Invoice Value","Flag Long Decimals Total Irrecoverable VAT","Flag Long Decimals Total Eligible Value","Flag Long Decimals Total LD CoR","Flag Long Decimals Total Trans CoR","Flag Long Decimals Total MD CoR","Flag Any Long Decimals"]
[{"$f":"ROW()-ROW(TransactionEntry[[#Headers],[Line Item ID]])","v":1}]

{"sheet":"Summary","index":7,"n_rows":5,"n_cols":10,"rows_kept":5,"cut":false,"hidden":false,"merged":[]}
["Summary"]
[]
["Row Labels","Sum of Total Less Developed Category of Region","Sum of Total Transition Category of Region","Sum of Total More Developed Category of Region","Sum of Total Eligible Value","Sum of Total Less Developed FRIC","Sum of Total Transition FRIC","Sum of Total More Developed FRIC","Sum of Total FRIC","Sum of Total Eligible Including FRIC"]
["(blank)"]
["Grand Total"]

{"sheet":"Cleansed","index":8,"n_rows":1,"n_cols":22,"rows_kept":1,"cut":false,"hidden":true,"merged":[]}
["line-number","cost-category","delivery-partner","priority-axis","investment-priority","procured-contract-id","supplier-name","supplier-vat","invoice-id","invoice-date","defrayal-date","defrayal-method","defrayal-reference","expenditure-desc","apportionment-details","total-invoice-value","total-irrecoverable-vat","total-eligible-value","eligible-flat-rate-indirect-costs","total-less-developed-category-of-region","total-transition-category-of-region","total-more-developed-category-of-region"]

{"sheet":"ExportReady","index":9,"n_rows":0,"n_cols":0,"rows_kept":0,"cut":false,"hidden":true,"merged":[]}